bitfinex/quotes_ETHUSD_20241203
["timestamp","ask_amount","ask_price","bid_price","bid_amount"]
[1733225300301,3.28519531,3615.9,3615.1,0.2768]
[1733225300302,3.18519531,3615.9,3615.1,0.2768]
[1733225301259,3.18519531,3615.9,3615.2,0.2768]
[1733225301785,3.21286907,3615.9,3615.2,0.2768]
[1733225301992,0.50317691,3615.8,3615.2,0.2768]
[1733225302191,0.02767376,3615.7,3614.7,0.2768]
[1733225302501,0.02767376,3615.7,3614.4,0.55]
[1733225302502,0.1,3615.8,3614.9,0.2768]
[1733225302702,0.1,3615.8,3615.1,0.2768]
[1733225302886,3.18519531,3615.9,3615.1,0.2768]
[1733225303196,3.67560484,3615.9,3615.1,0.2768]
[1733225303396,3.77560484,3615.9,3615.1,0.2768]
[1733225303598,3.67560484,3615.9,3615.0,0.2768]
[1733225303788,3.67560484,3615.9,3615.2,0.2768]
[1733225304987,0.1,3615.8,3615.3,0.2768]
[1733225305154,3.67560484,3615.9,3615.3,0.2768]
[1733225305353,0.1,3615.8,3615.3,0.2768]
[1733225305968,0.1,3615.8,3615.0,0.2768]
[1733225306168,0.02767376,3615.7,3615.2,0.2768]
[1733225306506,3.77560484,3615.9,3615.2,0.2768]
[1733225306862,3.67560484,3615.9,3615.2,0.2768]
[1733225307062,3.67560484,3615.9,3615.0,0.2768]
[1733225307265,3.28519531,3615.9,3615.2,0.2768]
[1733225307874,3.18519531,3615.9,3615.2,0.2768]
[1733225308069,0.1554882,3615.9,3615.2,0.2768]
[1733225308286,0.1554882,3615.9,3614.4,0.55]
[1733225308287,0.1554882,3615.9,3615.3,0.2768]
[1733225308565,0.1554882,3615.9,3615.4,0.54872279]
[1733225309087,0.2554882,3615.9,3615.3,0.2768]
[1733225309397,0.28316196,3615.9,3615.3,0.2768]
[1733225309962,0.50677511,3615.9,3615.3,0.2768]
[1733225310163,0.80677511,3615.9,3615.3,0.2768]
[1733225310704,3.02970711,3615.8,3615.3,0.2768]
[1733225311468,0.02767376,3615.7,3615.3,0.2768]
[1733225312083,4.18437705,3615.8,3615.3,0.2768]
[1733225312324,3.02970711,3615.4,3615.3,0.2768]
[1733225318352,0.1,3615.5,3615.3,0.2768]
[1733225318565,4.55230711,3615.8,3615.3,0.2768]
[1733225318757,0.1554882,3615.9,3615.4,0.2768]
[1733225319891,0.1554882,3615.9,3615.2,0.2768]
[1733225320850,0.1554882,3615.9,3614.7,0.2768]
[1733225321087,3.02970711,3615.7,3614.9,0.2768]
[1733225321285,1.5282,3615.6,3614.9,0.2768]
[1733225321595,3.02970711,3615.3,3614.9,0.2768]
[1733225321949,3.02970711,3615.3,3614.5,0.2768]
[1733225325272,0.2,3615.2,3614.5,0.2768]
[1733225325491,0.2,3615.2,3614.0,0.2768]
[1733225326378,0.53297071,3615.2,3614.0,0.2768]
[1733225326729,3.02970711,3614.9,3614.0,0.2768]
[1733225326872,3.02970711,3614.5,3614.2,0.2768]
[1733225327818,3.02970711,3614.5,3614.0,0.2768]
[1733225327978,3.02970711,3614.2,3614.0,0.2768]
[1733225329627,3.22970711,3614.2,3614.0,0.2768]
[1733225330897,3.02970711,3614.2,3614.0,0.2768]
[1733225331512,3.02970711,3614.4,3614.0,0.2768]
[1733225331824,3.02970711,3614.7,3614.0,0.2768]
[1733225333119,3.02970711,3614.7,3614.2,0.2768]
[1733225337273,3.57970711,3614.3,3614.2,0.2768]
[1733225338042,3.57970711,3614.3,3614.0,0.2768]
[1733225338251,0.55,3614.2,3614.0,0.2768]
[1733225339244,3.02970711,3614.3,3614.0,0.2768]
[1733225339840,0.55,3614.2,3614.0,0.2768]
[1733225345001,1.6443,3614.1,3614.0,0.2768]
[1733225345198,2.73670071,3614.1,3614.0,0.2768]
[1733225346055,2.93670071,3614.1,3614.0,0.2768]
[1733225346255,3.03670071,3614.1,3614.0,0.2768]
[1733225346511,2.83670071,3614.1,3614.0,0.2768]
[1733225347070,3.02970711,3614.3,3614.0,0.2768]
[1733225347282,0.1,3614.5,3614.0,0.2768]
[1733225347485,1.7168,3614.7,3614.0,0.2768]
[1733225347662,3.02970711,3614.2,3614.0,0.2768]
[1733225348596,1.7376,3614.1,3614.0,0.2768]
[1733225348754,2.31433071,3614.1,3614.0,0.2768]
[1733225349389,2.86433071,3614.1,3614.0,0.2768]
[1733225352908,2.66433071,3614.1,3614.0,0.2768]
[1733225353201,2.3876,3614.1,3614.0,0.2768]
[1733225353856,0.65,3614.1,3614.0,0.2768]
[1733225354245,3.02970711,3614.2,3614.0,0.2768]
[1733225354620,3.12970711,3614.2,3614.0,0.2768]
[1733225354821,3.02970711,3614.2,3614.0,0.2768]
[1733225355820,0.55,3614.1,3614.0,0.2768]
[1733225357826,3.02970711,3614.6,3614.0,0.2768]
[1733225358146,0.1,3614.5,3614.0,0.2768]
[1733225358346,3.02970711,3614.6,3613.9,0.2768]
[1733225358653,0.1,3614.5,3613.9,0.2768]
[1733225358972,3.02970711,3614.6,3613.9,0.2768]
[1733225360264,0.55,3614.5,3613.9,0.2768]
[1733225360770,0.55,3614.3,3613.9,0.2768]
[1733225361286,0.55,3614.5,3613.9,0.2768]
[1733225361988,0.55,3614.9,3613.9,0.2768]
[1733225362132,0.2,3615.2,3613.9,0.2768]
[1733225362336,3.02970711,3615.1,3613.9,0.2768]
[1733225363149,3.02970711,3614.7,3613.9,0.2768]
[1733225364394,0.55,3614.6,3613.9,0.2768]
[1733225365276,0.55,3614.6,3612.7,0.5561138]
[1733225365277,0.55,3614.6,3612.8,0.2768]
[1733225366510,0.55,3614.6,3612.9,0.0276688]
[1733225366684,0.55,3614.6,3612.8,0.2768]
[1733225367382,0.55,3614.6,3612.9,0.0276688]
[1733225367581,0.55,3614.6,3614.5,0.82425544]
[1733225367783,0.55,3614.6,3614.5,0.2768]
[1733225369553,0.55,3614.6,3612.8,0.2768]
[1733225370750,0.55,3614.6,3613.9,0.2768]
[1733225371310,3.02970711,3614.7,3613.9,0.2768]
[1733225377428,3.02970711,3614.4,3613.9,0.2768]
[1733225377634,1.45563689,3614.1,3613.9,0.2768]
[1733225377833,0.59348564,3614.9,3613.9,0.2768]
[1733225378060,1.45563689,3614.2,3613.9,0.2768]
[1733225379967,1.44317383,3614.2,3613.9,0.2768]
[1733225381727,1.44317383,3614.2,3613.8,0.53523248]
[1733225382273,0.55,3614.9,3613.8,0.53523248]
[1733225382423,1.45563689,3614.3,3613.8,0.53523248]
[1733225382927,0.55,3614.9,3613.8,0.53523248]
[1733225383149,1.45563689,3614.3,3613.8,0.53523248]
[1733225383543,0.55,3614.9,3613.8,0.53523248]
[1733225383879,1.45563689,3614.3,3613.8,0.53523248]
[1733225384261,0.55,3614.9,3613.8,0.53523248]
[1733225384468,1.45563689,3614.7,3613.8,0.53523248]
[1733225385150,1.45563689,3614.7,3613.8,0.48523248]
[1733225386042,1.6308,3615.0,3613.8,0.48523248]
[1733225386244,3.08643689,3615.0,3613.9,0.02766872]
[1733225386459,3.08643689,3615.0,3613.8,0.48523248]
[1733225386658,0.485232,3615.5,3614.1,1.45563689]
[1733225386884,1.45563689,3615.4,3614.2,0.14833037]
[1733225387465,1.45563689,3615.4,3614.3,0.02766216]
[1733225387673,1.45563689,3615.6,3614.2,0.14833037]
[1733225387980,1.45563689,3615.6,3614.3,0.16039673]
[1733225388985,1.45563689,3615.6,3614.9,0.55670843]
[1733225389168,1.45563689,3615.6,3614.3,0.16039673]
[1733225389678,3.1638293,3615.9,3614.4,0.02766075]
[1733225390867,3.1638293,3615.9,3613.9,0.02766077]
[1733225391071,3.1638293,3615.9,3614.0,0.30925162]
[1733225392484,3.1638293,3615.9,3614.8,0.56074817]
[1733225393981,3.0083411,3615.6,3614.8,0.56074817]
[1733225394992,1.5347,3615.5,3614.8,0.56074817]
[1733225395146,3.0083411,3615.3,3613.4,0.05651436]
[1733225395353,3.0083411,3615.3,3613.4,0.36299991]
[1733225395659,3.0083411,3615.3,3613.5,0.02766216]
[1733225395845,3.0083411,3615.3,3614.5,0.54028186]
[1733225397012,0.24348564,3615.7,3614.5,0.54028186]
[1733225397148,0.04348564,3615.7,3614.5,0.54028186]
[1733225398649,4.9873293,3615.9,3614.6,0.2764]
[1733225398998,0.04348564,3615.8,3614.6,0.2764]
[1733225399495,3.0083411,3615.3,3614.6,0.2764]
[1733225399667,4.6318411,3615.3,3614.6,0.2764]
[1733225400188,4.6318411,3615.3,3613.5,0.2764]
[1733225400350,3.5583411,3615.0,3613.5,0.2764]
[1733225400552,3.0083411,3615.0,3614.1,0.2764]
[1733225400996,0.04348564,3615.2,3614.1,0.2764]
[1733225402292,3.05182674,3615.0,3613.4,0.2764]
[1733225402634,1.5199,3614.9,3613.4,0.2764]
[1733225402755,3.05182674,3615.0,3614.0,0.2764]
[1733225404491,3.05182674,3615.0,3614.0,0.30406729]
[1733225405155,3.05182674,3615.0,3614.0,0.2764]
[1733225406102,3.48551377,3615.0,3614.0,0.2764]
[1733225406305,0.04348564,3614.8,3614.0,0.2764]
[1733225406462,3.0083411,3614.6,3614.0,0.2764]
[1733225408455,3.0083411,3614.9,3614.0,0.2764]
[1733225408660,0.04348564,3614.8,3614.0,0.2764]
[1733225408889,0.2,3614.7,3614.0,0.2764]
[1733225409194,0.72847994,3614.7,3614.0,0.2764]
[1733225410235,0.2,3615.4,3614.0,0.2764]
[1733225410431,4.7680411,3615.7,3613.7,0.2764]
[1733225410729,0.04348564,3615.4,3613.7,0.2764]
[1733225411324,0.04348564,3615.4,3613.8,0.0276644]
[1733225411510,4.7680411,3615.7,3614.0,0.2764]
[1733225411710,4.5680411,3615.7,3614.0,0.2764]
[1733225412017,0.04348564,3615.6,3614.0,0.2764]
[1733225412226,3.0083411,3615.3,3614.0,0.2764]
[1733225412433,1.5597,3615.2,3614.4,0.2764]
[1733225412592,3.0083411,3615.0,3614.4,0.2764]
[1733225412796,3.25182674,3615.0,3614.4,0.2764]
[1733225413552,3.25182674,3615.0,3614.0,0.2764]
[1733225414194,3.0083411,3614.6,3614.0,0.2764]
[1733225414400,4.5719411,3614.6,3614.0,0.2764]
[1733225414607,4.5719411,3614.6,3613.8,0.2764]
[1733225415641,0.04348564,3614.8,3613.8,0.2764]
[1733225415642,0.04348564,3614.8,3613.8,0.30406997]
[1733225415847,0.04348564,3614.8,3613.8,0.2764]
[1733225417298,4.6490411,3615.0,3613.8,0.2764]
[1733225417729,0.54759276,3615.8,3613.8,0.2764]
[1733225417730,1.8344,3615.3,3613.9,0.02766766]
[1733225417932,1.5619,3615.3,3614.1,0.2764]
[1733225418233,0.04348564,3615.0,3614.3,0.2764]
[1733225418981,1.80538564,3615.3,3614.3,0.2764]
[1733225419174,1.7619,3615.3,3614.3,0.2764]
[1733225419331,2.04327267,3615.3,3614.3,0.2764]
[1733225419537,0.68137267,3615.3,3614.4,0.37656535]
[1733225419739,0.68137267,3615.3,3614.4,0.3489]
[1733225421578,0.04348564,3615.2,3614.4,0.3489]
[1733225422139,0.2,3615.3,3614.4,0.3489]
[1733225422339,0.04348564,3615.2,3614.4,0.3489]
[1733225422801,1.6305,3615.5,3614.3,0.54488163]
[1733225422802,1.67398564,3615.5,3614.6,0.2764]
[1733225422938,3.0083411,3615.6,3614.8,0.2764]
[1733225424193,0.2,3615.7,3615.0,0.2764]
[1733225424481,0.24348564,3615.7,3615.0,0.2764]
[1733225425322,0.2,3615.7,3615.0,0.2764]
[1733225425529,0.1554882,3615.9,3614.8,0.2764]
[1733225425724,0.1554882,3615.9,3615.2,0.2764]
[1733225425725,0.04348564,3615.7,3615.2,0.2764]
[1733225425882,3.05182674,3615.6,3615.2,0.2764]
[1733225426089,0.2,3615.3,3615.2,0.2764]
[1733225426723,0.2,3615.3,3614.5,0.2764]
[1733225426925,3.0083411,3615.2,3614.5,0.2764]
[1733225428338,3.0083411,3615.2,3614.8,0.2764]
[1733225429038,3.69013377,3615.2,3614.8,0.2764]
[1733225429246,1.5661,3615.1,3614.8,0.2764]
[1733225429737,3.53361941,3615.2,3614.8,0.2764]
[1733225430901,3.73361941,3615.2,3614.8,0.2764]
[1733225431105,1.7293,3614.9,3614.8,0.2764]
[1733225431305,1.5293,3614.9,3614.8,0.2764]
[1733225431534,0.04348564,3615.0,3614.8,0.2764]
[1733225434137,0.2,3614.9,3614.8,0.2764]
[1733225439756,1.826,3614.9,3614.8,0.2764]
[1733225440064,2.423941,3614.9,3614.8,0.2764]
[1733225441035,0.04348564,3615.0,3614.8,0.2764]
[1733225441363,3.0083411,3614.9,3614.8,0.2764]
[1733225441536,3.0083411,3614.9,3613.3,1.5161]
[1733225441725,3.0083411,3613.8,3613.3,1.5161]
[1733225442032,0.04348564,3614.4,3613.5,1.5702]
[1733225442436,3.0083411,3614.7,3613.5,1.5702]
[1733225442743,3.0083411,3614.4,3613.5,1.5702]
[1733225443076,3.0083411,3614.4,3613.6,0.55]
[1733225443370,3.0083411,3614.4,3613.8,0.55]
[1733225443719,3.0083411,3614.5,3613.8,0.55]
[1733225443957,3.0083411,3614.4,3613.8,0.55]
[1733225444175,1.6106,3614.6,3613.8,0.55]
[1733225444478,1.6106,3614.6,3613.7,0.21202]
[1733225444671,1.6106,3614.6,3613.8,1.5008]
[1733225444873,1.5021,3615.1,3614.0,0.55]
[1733225446572,1.5021,3615.1,3603.5,2.7215163]
[1733225446573,1.6456,3614.3,3613.3,1.6363]
[1733225446775,3.0083411,3614.0,3613.3,1.6363]
[1733225446979,1.6456,3614.3,3613.3,1.6363]
[1733225447180,3.0083411,3614.1,3613.3,1.6363]
[1733225447365,3.0083411,3614.1,3613.3,1.79993]
[1733225448060,3.0083411,3614.1,3613.3,1.6363]
[1733225448655,3.0083411,3614.1,3613.4,0.2764]
[1733225451691,1.6456,3614.3,3613.4,0.2764]
[1733225451865,3.0083411,3614.4,3613.6,0.2764]
[1733225454198,0.55195541,3615.0,3614.2,0.2764]
[1733225454342,4.6716411,3615.5,3614.4,0.2764]
[1733225455071,4.6716411,3615.5,3614.3,1.6505]
[1733225455072,1.6633,3615.5,3614.6,0.2764]
[1733225455240,1.6633,3615.5,3614.8,0.2764]
[1733225455777,1.6633,3615.7,3614.8,0.2764]
[1733225456081,0.49790048,3615.6,3614.8,0.2764]
[1733225458342,0.5481704,3615.4,3614.8,0.2764]
[1733225459846,0.5481704,3615.4,3613.7,0.55]
[1733225459847,3.0083411,3615.0,3614.9,0.2764]
[1733225460091,4.5858411,3615.0,3614.9,0.2764]
[1733225460890,4.5858411,3615.0,3613.8,0.2764]
[1733225461094,0.45858411,3614.9,3613.8,0.2764]
[1733225461250,0.45858411,3614.9,3614.0,0.2764]
[1733225462559,3.0083411,3614.6,3614.0,0.2764]
[1733225463685,3.0083411,3614.6,3612.9,0.28775135]
[1733225463686,3.0083411,3614.2,3613.8,0.2764]
[1733225464450,3.0083411,3614.2,3613.5,0.2764]
[1733225465388,4.6311411,3613.8,3613.5,0.2764]
[1733225465546,4.6311411,3613.8,3613.2,0.2764]
[1733225466389,3.0083411,3613.8,3613.2,0.2764]
[1733225466752,3.0083411,3613.8,3613.4,0.2764]
[1733225467995,3.0083411,3613.8,3613.2,0.2764]
[1733225468152,3.47492521,3613.8,3613.2,0.2764]
[1733225468748,3.47492521,3613.8,3613.1,0.2764]
[1733225469400,1.5632,3613.7,3613.1,0.2764]
[1733225469553,3.0083411,3613.4,3613.1,0.2764]
[1733225469956,3.0083411,3613.4,3612.4,1.5413]
[1733225469957,3.0083411,3613.4,3612.7,0.2764]
[1733225470154,3.46549521,3613.4,3612.7,0.2764]
[1733225470992,3.46549521,3613.4,3612.5,0.2764]
[1733225471196,3.0083411,3613.4,3612.7,0.2764]
[1733225471353,3.0083411,3613.4,3613.0,0.8264]
[1733225471796,3.0083411,3613.4,3613.1,0.8264]
[1733225472090,3.0083411,3613.4,3613.2,0.55]
[1733225476895,3.0083411,3614.8,3613.2,0.55]
[1733225476896,3.0083411,3613.8,3613.5,0.55]
[1733225477069,3.0083411,3613.8,3613.5,0.8264]
[1733225478873,1.6111,3613.7,3613.5,0.8264]
[1733225482112,0.5648873,3613.6,3613.5,0.8264]
[1733225486233,3.0083411,3614.3,3613.5,0.8264]
[1733225486432,0.54393143,3613.7,3613.5,1.05935]
[1733225488026,3.0083411,3614.3,3613.5,1.05935]
[1733225489927,1.6247,3614.2,3613.5,0.8264]
[1733225492415,3.0083411,3613.9,3613.5,0.8264]
[1733225492855,3.57283088,3613.9,3613.5,0.8264]
[1733225493023,1.6242,3613.8,3613.5,0.8264]
[1733225497339,3.0083411,3613.9,3613.5,0.8264]
[1733225497541,3.47426521,3613.9,3613.5,0.8264]
[1733225497742,0.46592411,3613.9,3613.5,0.8264]
[1733225497902,1.6509,3614.1,3613.5,0.8264]
[1733225500811,0.54389112,3613.7,3613.5,0.8264]
[1733225501349,0.54389112,3613.7,3613.5,2.441]
[1733225501749,1.6104,3614.3,3613.5,2.441]
[1733225502245,1.6179,3614.6,3613.5,2.441]
[1733225502410,3.0083411,3614.4,3613.5,0.8264]
[1733225504514,0.55679213,3613.8,3613.5,0.8264]
[1733225504716,0.55679213,3613.8,3613.7,0.2764]
[1733225505054,0.59790048,3615.6,3613.7,0.2764]
[1733225505055,0.49790048,3615.6,3614.3,0.2764]
[1733225505253,1.6447,3615.5,3614.8,0.55]
[1733225505413,1.6447,3615.5,3614.8,0.2764]
[1733225505617,1.6447,3615.3,3614.8,0.2764]
[1733225506056,0.55340847,3614.9,3614.8,0.8264]
[1733225506964,2.15000847,3614.9,3613.6,0.2764]
[1733225507133,1.5966,3614.8,3613.6,0.2764]
[1733225508340,1.5966,3614.8,3613.8,0.2764]
[1733225508545,0.21500085,3614.7,3614.1,0.55]
[1733225508861,0.21500085,3614.7,3614.5,0.55]
[1733225510561,0.21500085,3614.7,3613.6,0.2764]
[1733225510562,0.21500085,3614.7,3614.6,0.8264]
[1733225515347,0.55340847,3614.9,3614.8,0.8264]
[1733225518237,2.21210847,3614.9,3613.8,0.2764]
[1733225518744,2.21210847,3614.9,3614.2,0.2764]
[1733225519235,2.21210847,3614.9,3614.4,0.2764]
[1733225519432,2.21210847,3614.9,3614.6,0.2764]
[1733225519632,0.22121085,3614.8,3614.6,0.2764]
[1733225520574,1.5104,3614.7,3614.6,0.2764]
[1733225521276,1.4109,3614.7,3614.6,0.2764]
[1733225521479,1.5109,3614.7,3614.1,0.55]
[1733225521635,3.0083411,3614.4,3614.1,0.2764]
[1733225521830,0.32083411,3614.3,3614.1,0.2764]
[1733225522632,0.32083411,3614.3,3613.2,0.2764]
[1733225523769,0.32083411,3614.3,3613.4,0.2764]
[1733225524133,1.6098,3614.2,3613.6,0.2764]
[1733225524579,1.6098,3614.2,3613.8,0.2764]
[1733225524580,1.7098,3614.2,3613.8,0.2764]
[1733225524880,1.586,3614.0,3613.9,0.55]
[1733225525369,1.586,3614.0,3600.7,0.011]
[1733225525370,0.1,3613.7,3612.5,1.5505]
[1733225525669,0.1,3613.7,3610.7,1.52290943]
[1733225525670,1.586,3613.5,3611.9,1.5505]
[1733225525870,1.5442,3613.8,3612.0,0.22633487]
[1733225526167,1.7442,3613.8,3612.7,0.2764]
[1733225526377,3.0083411,3613.9,3612.7,0.2764]
[1733225526378,2.07453731,3613.7,3612.7,0.2764]
[1733225527439,2.07453731,3613.7,3612.9,0.2764]
[1733225527841,2.07453731,3613.7,3613.1,0.2764]
[1733225528251,2.07453731,3613.7,3613.2,0.55]
[1733225528864,2.15453731,3613.7,3613.2,0.55]
[1733225529175,1.6242,3613.7,3613.2,0.55]
[1733225529681,0.55083197,3614.0,3613.2,0.55]
[1733225529682,2.17503197,3614.0,3613.2,0.55]
[1733225529983,2.17503197,3614.0,3613.2,0.8264]
[1733225530811,2.17503197,3614.0,3613.4,0.2764]
[1733225531017,0.55083197,3614.0,3613.5,0.8264]
[1733225531790,0.55083197,3614.0,3613.7,0.8264]
[1733225532083,1.5854,3615.0,3613.7,0.8264]
[1733225532084,3.0083411,3614.9,3613.7,0.8264]
[1733225532317,4.5937411,3614.9,3613.7,0.8264]
[1733225532677,0.5644152,3614.7,3613.7,0.8264]
[1733225534613,0.5644152,3614.7,3614.1,0.2764]
[1733225534816,0.5644152,3614.7,3614.3,0.2764]
[1733225535122,0.5644152,3614.7,3614.4,0.55]
[1733225535478,0.5644152,3614.7,3614.4,0.8264]
[1733225535800,1.5673,3615.2,3614.4,0.8264]
[1733225536115,0.15673,3615.1,3614.4,0.8264]
[1733225538835,0.55470226,3614.5,3614.4,0.8264]
[1733225541234,0.55470226,3614.5,3613.8,0.2764]
[1733225541418,3.56304336,3614.5,3613.9,0.55]
[1733225541623,3.56304336,3614.5,3613.6,0.55]
[1733225541853,0.51502434,3614.4,3613.6,0.55]
[1733225542468,0.51502434,3614.4,3613.5,0.2764]
[1733225542959,1.569,3614.1,3613.0,0.2764]
[1733225544272,1.569,3614.1,3612.6,0.2764]
[1733225544462,0.55913014,3613.3,3612.6,0.2764]
[1733225546109,0.55913014,3613.3,3612.7,0.8264]
[1733225549104,1.6279,3613.2,3612.7,0.8264]
[1733225549306,1.6279,3613.2,3612.3,0.2764]
[1733225549615,0.51953712,3613.1,3612.3,0.2764]
[1733225550773,0.51953712,3613.1,3612.7,0.2764]
[1733225551818,3.52787822,3613.1,3612.8,0.55]
[1733225553122,1.6177,3613.0,3612.0,0.2764]
[1733225553469,3.0083411,3612.5,3612.0,0.2764]
[1733225553618,1.6332,3612.4,3612.0,0.2764]
[1733225553821,1.6332,3612.4,3611.7,0.2764]
[1733225554130,1.6332,3612.4,3610.2,3.0083411]
[1733225554563,0.46415411,3612.3,3610.8,0.2877524]
[1733225554765,3.0083411,3611.9,3610.3,0.30083411]
[1733225554914,3.0083411,3611.9,3610.4,0.2764]
[1733225555263,3.0083411,3611.9,3610.4,0.56413521]
[1733225555553,1.6143,3611.8,3610.4,0.56413521]
[1733225556129,1.6143,3611.8,3610.8,0.2764]
[1733225556315,1.6143,3611.8,3611.0,0.2764]
[1733225556515,0.51664534,3611.7,3611.2,0.2764]
[1733225556817,0.51664534,3611.7,3611.5,0.55]
[1733225557017,0.51664534,3611.7,3611.6,0.8264]
[1733225557517,0.51664534,3611.7,3611.6,0.55]
[1733225557713,0.51664534,3611.7,3611.4,0.55]
[1733225557941,0.56830988,3611.6,3611.4,0.55]
[1733225558150,0.56830988,3611.6,3610.9,0.2764]
[1733225558662,3.57665098,3611.6,3610.9,0.2764]
[1733225558957,3.57665098,3611.6,3610.6,0.2764]
[1733225559628,1.6143,3611.8,3610.6,0.2764]
[1733225559826,0.54381233,3611.9,3610.8,0.2764]
[1733225560163,0.54381233,3611.9,3611.1,1.8744]
[1733225560317,0.54381233,3611.9,3611.2,0.55]
[1733225560512,1.5853,3612.5,3611.5,0.2764]
[1733225560729,0.56451009,3612.0,3611.7,0.55]
[1733225560936,0.56451009,3612.0,3611.9,0.55]
[1733225561128,0.45936411,3612.4,3611.9,0.55]
[1733225561365,1.5853,3612.5,3611.9,0.55]
[1733225561580,1.5853,3612.5,3611.6,0.2764]
[1733225561581,1.5853,3612.5,3611.7,0.55]
[1733225561732,3.0083411,3612.4,3611.7,0.8264]
[1733225562253,0.54694878,3612.0,3611.7,0.8264]
[1733225563889,1.5803,3611.9,3611.1,0.2764]
[1733225564186,0.51355899,3611.8,3611.1,0.2764]
[1733225564856,1.107787,3611.7,3611.1,0.2764]
[1733225565886,1.107787,3611.7,3611.2,0.55]
[1733225568294,1.107787,3611.7,3611.5,0.2764]
[1733225569047,1.107787,3611.7,3611.6,0.8264]
[1733225569247,1.107787,3611.7,3611.6,0.2764]
[1733225569488,1.107787,3611.7,3611.6,0.8264]
[1733225570857,1.107787,3611.7,3611.6,2.4636]
[1733225571772,0.56667063,3612.1,3611.8,0.2764]
[1733225571974,1.67429463,3612.1,3611.9,0.8264]
[1733225572174,0.16742946,3612.0,3611.9,0.8264]
[1733225573371,1.67429463,3612.1,3611.9,0.8264]
[1733225573570,0.56667063,3612.1,3611.9,0.8264]
[1733225575081,1.107463,3612.3,3611.9,0.8264]
[1733225576770,1.6505,3611.9,3610.9,0.2764]
[1733225577022,3.0083411,3611.5,3610.9,0.2764]
[1733225577165,1.6481,3611.4,3610.6,0.2764]
[1733225577367,3.0083411,3611.1,3610.6,0.2764]
[1733225577668,3.0083411,3610.7,3608.5,0.2]
[1733225577975,3.0083411,3610.7,3608.6,1.5863]
[1733225577976,1.6481,3610.6,3608.6,1.5863]
[1733225578318,1.6092,3610.2,3608.6,1.76773682]
[1733225578782,1.6092,3610.2,3608.6,1.5863]
[1733225579311,1.6326,3610.1,3607.9,0.22806821]
[1733225579529,1.5326,3609.0,3607.7,1.6017]
[1733225580067,1.5326,3609.0,3607.8,1.36897328]
[1733225580317,1.5326,3609.5,3607.8,1.36897328]
[1733225580485,0.45409411,3609.4,3608.1,1.6017]
[1733225580679,2.07988407,3609.5,3608.1,1.6017]
[1733225580897,2.07988407,3609.5,3608.1,2.9324801]
[1733225581378,3.0083411,3609.2,3607.8,1.36897328]
[1733225581588,3.82487359,3609.2,3607.8,1.36897328]
[1733225581787,1.6202,3609.0,3607.8,1.36897328]
[1733225581968,1.6202,3609.0,3607.7,3.0220789]
[1733225582319,0.54107816,3608.9,3607.3,2.93731733]
[1733225582518,1.6475,3608.8,3607.3,1.5443]
[1733225584269,1.6475,3608.8,3607.4,0.55]
[1733225584473,0.22061985,3608.7,3607.4,0.55]
[1733225584669,1.6475,3608.6,3607.0,0.55]
[1733225585003,1.6475,3608.6,3606.9,1.5443]
[1733225585321,1.6475,3608.6,3606.6,1.32188933]
[1733225585608,0.54192381,3608.4,3606.6,1.32188933]
[1733225585920,1.5626,3608.2,3606.2,2.93986803]
[1733225586067,1.5626,3608.2,3606.4,1.374586]
[1733225586273,1.5626,3608.2,3606.2,1.35216803]
[1733225586921,1.6351,3608.0,3606.2,1.35216803]
[1733225587124,1.6153,3607.8,3606.2,1.35216803]
[1733225587287,1.6153,3607.8,3606.0,1.36232496]
[1733225587481,1.6153,3607.8,3605.9,5.12908206]
[1733225587894,1.6153,3607.2,3605.9,1.30420847]
[1733225588309,1.5315,3607.2,3605.9,1.30420847]
[1733225588617,0.20979887,3607.1,3605.9,1.60103932]
[1733225589171,0.20979887,3607.1,3605.6,1.3121539]
[1733225589377,0.20979887,3607.1,3605.2,0.28741347]
[1733225589378,0.1,3607.1,3605.2,0.28741347]
[1733225589621,0.1,3607.1,3604.9,1.658]
[1733225589622,3.92487359,3607.2,3604.9,3.0426405]
[1733225589914,0.3,3607.8,3605.6,1.3121539]
[1733225590123,0.56027813,3606.8,3605.9,5.12908206]
[1733225590670,0.49837813,3606.8,3605.9,5.12908206]
[1733225590870,0.49837813,3606.8,3605.9,1.30420847]
[1733225591089,0.49837813,3606.8,3605.9,3.82487359]
[1733225591377,1.5924,3607.7,3606.0,0.57174782]
[1733225591572,1.5924,3607.7,3606.3,3.82487359]
[1733225591822,1.5924,3607.1,3606.0,2.20134782]
[1733225591981,1.5924,3607.1,3606.0,0.57174782]
[1733225592403,1.5924,3607.1,3606.3,3.82487359]
[1733225592630,1.5924,3607.1,3606.3,4.31953573]
[1733225592913,1.5924,3607.1,3606.9,3.82487359]
[1733225593279,1.5924,3607.1,3607.0,0.2764]
[1733225594489,0.55704418,3607.9,3607.0,0.2764]
[1733225594688,1.5257,3607.8,3607.3,3.82487359]
[1733225595598,1.5257,3607.8,3607.7,3.82487359]
[1733225595800,1.6263,3608.2,3607.7,3.82487359]
[1733225596427,1.6263,3608.2,3608.1,3.82487359]
[1733225596586,3.82487359,3610.7,3608.1,3.82487359]
[1733225596587,1.6263,3609.7,3608.1,3.82487359]
[1733225597088,1.5057,3608.6,3608.1,3.82487359]
[1733225597631,1.71242933,3608.6,3608.1,3.82487359]
[1733225599441,1.5057,3608.6,3608.5,3.82487359]
[1733225599991,1.5057,3608.6,3608.1,3.82487359]
[1733225600500,1.5641,3609.0,3608.5,3.82487359]
[1733225601742,0.55769048,3609.4,3608.9,3.82487359]
[1733225601893,2.14849048,3609.4,3608.9,3.82487359]
[1733225602116,2.14849048,3609.4,3609.3,3.82487359]
[1733225602428,2.36333953,3609.4,3609.3,3.82487359]
[1733225603371,2.36333953,3609.4,3608.9,3.82487359]
[1733225604061,1.80564905,3609.4,3608.9,3.82487359]
[1733225604852,1.80564905,3609.4,3609.3,3.82487359]
[1733225605713,0.54466466,3609.5,3609.3,3.82487359]
[1733225606952,1.73632372,3614.1,3609.3,3.82487359]
[1733225606953,1.6352,3610.4,3609.4,2.2026]